fUSD/lending_fUSD_20240408
["ID","MTS","AMOUNT","RATE_DAILY","PERIOD"]
[321862821,1712572246742,-2952.91,0.00024329,15]
[321862823,1712572246751,-150.0,0.0002434,2]
[321862825,1712572246760,-3959.16914891,0.0002435,8]
[321862827,1712572246769,-307.763,0.00024358,2]
[321862829,1712572246778,-740.649,0.00024358,2]
[321862831,1712572246789,-2412.858,0.00024358,2]
[321862833,1712572246798,-398.0,0.00024358,2]
[321862835,1712572246807,-1140.0,0.00024358,2]
[321862837,1712572246816,-1438.021,0.00024358,2]
[321862839,1712572246825,-1634.0,0.00024358,2]
[321862841,1712572246834,-2381.932,0.00024358,2]
[321862843,1712572246844,-1365.0,0.00024358,2]
[321862845,1712572246857,-2286.0,0.00024358,2]
[321862847,1712572246866,-1052.0,0.00024358,2]
[321862849,1712572246875,-1216.0,0.00024358,2]
[321862850,1712572246886,-164.85658768,0.00024365,2]
[321862851,1712572246895,-1877.94880233,0.00024433,2]
[321862852,1712572246903,-800.0,0.00024478,2]
[321862854,1712572246912,-200.0,0.00024478,2]
[321862856,1712572246921,-150.0,0.00024486,2]
[321862857,1712572246931,-510.0,0.000245,2]
[321862859,1712572246940,-150.0,0.000245,2]
[321862860,1712572246950,-154.21324393,0.0002458,2]
[321862862,1712572246959,-1500.0,0.00024589,2]
[321862865,1712572246968,-1500.0,0.00024596,2]
[321862867,1712572246979,-252.56,0.000246,2]
[321862869,1712572246988,-394.0,0.000246,2]
[321862871,1712572246997,-788.0,0.000246,2]
[321862872,1712572247006,-510.0,0.000246,2]
[321862874,1712572247015,-289.0,0.000246,8]
[321862876,1712572247024,-481.0,0.000246,8]
[321862878,1712572247034,-962.0,0.000246,8]
[321862880,1712572247043,-788.0,0.000246,2]
[321862883,1712572247052,-196.38521884,0.00024604,2]
[321862884,1712572247062,-305.44667792,0.0002461,2]
[321862886,1712572247071,-196.38521884,0.00024611,2]
[321862889,1712572247080,-1250.61616444,0.0002462,2]
[321862891,1712572247089,-1250.61616444,0.0002462,2]
[321862893,1712572247098,-535.04720909,0.00024622,2]
[321862895,1712572247107,-1250.61616444,0.00024623,2]
[321862897,1712572247116,-305.44667792,0.00024623,2]
[321862899,1712572247125,-150.0,0.00024627,2]
[321862901,1712572247134,-505.0,0.0002463,2]
[321862903,1712572247143,-1250.61616444,0.00024633,2]
[321862905,1712572247154,-196.38521884,0.00024638,2]
[321862907,1712572247164,-535.04720909,0.00024639,2]
[321862909,1712572247173,-1250.61616444,0.00024639,2]
[321862911,1712572247183,-535.04720909,0.00024644,2]
[321862913,1712572247195,-1250.61616444,0.00024651,2]
[321862915,1712572247205,-196.38521884,0.00024654,2]
[321862917,1712572247215,-196.38521884,0.00024655,2]
[321862919,1712572247226,-196.38521884,0.00024655,2]
[321862921,1712572247234,-196.38521884,0.00024655,2]
[321862923,1712572247244,-500.0,0.00024658,2]
[321862925,1712572247253,-305.44667792,0.0002466,2]
[321862927,1712572247263,-305.44667792,0.0002466,2]
[321862929,1712572247273,-1526.9819722,0.00024666,2]
[321862931,1712572247282,-13132.1201124,0.00024666,2]
[321862933,1712572247292,-10424.8030285,0.00024666,2]
[321862935,1712572247301,-4396.7092147,0.00024666,2]
[321862937,1712572247310,-5626.6042014,0.00024666,2]
[321862939,1712572247319,-1250.61616444,0.00024666,2]
[321862941,1712572247329,-300.0,0.00024668,2]
[321862943,1712572247338,-2094.39,0.00024669,2]
[321862945,1712572247347,-535.04720909,0.00024671,2]
[321862947,1712572247356,-535.04720909,0.00024672,2]
[321862949,1712572247366,-535.04720909,0.00024675,2]
[321862951,1712572247375,-305.44667792,0.00024675,2]
[321862953,1712572247384,-206.59266165,0.00024675,2]
[321862955,1712572247393,-5825.99102334,0.00024675,2]
[321862957,1712572247403,-21656.41040636,0.00024676,2]
[321862959,1712572247412,-305.44667792,0.00024676,2]
[321862961,1712572247422,-1382.95983627,0.00024676,2]
[321862963,1712572247437,-1567.33224456,0.00024676,2]
[321862965,1712572247447,-5661.83883325,0.00024677,2]
[321862967,1712572247458,-639.38550634,0.00024678,2]
[321862969,1712572247467,-585.40992667,0.00024678,2]
[321862971,1712572247478,-680.16324209,0.00024679,2]
[321862973,1712572247487,-212.37031754,0.00024679,2]
[321862975,1712572247496,-585.40992667,0.0002468,2]
[321862977,1712572247505,-1174.00379903,0.0002468,2]
[321862979,1712572247514,-39116.24762274,0.00024681,2]
[321862981,1712572247523,-680.16324209,0.00024681,2]
[321862983,1712572247532,-212.37031754,0.00024681,2]
[321862985,1712572247541,-5753.14461705,0.00024681,2]
[321862987,1712572247550,-1567.33224456,0.00024682,2]
[321862989,1712572247559,-347.3077628,0.00024682,2]
[321862991,1712572247568,-212.37031754,0.00024682,2]
[321862993,1712572247577,-305.44667792,0.00024683,2]
[321862995,1712572247586,-32346.3656615,0.00024683,2]
[321862997,1712572247595,-6269.32897825,0.00024684,2]
[321862999,1712572247604,-180.18816982,0.00024684,2]
[321863001,1712572247613,-150.0,0.00024684,2]
[321863003,1712572247622,-585.40992667,0.00024684,2]
[321863005,1712572247631,-9516.5401976,0.00024684,2]
[321863007,1712572247640,-47582.700988,0.00024684,2]
[321863009,1712572247650,-639.38550634,0.00024685,2]
[321863011,1712572247659,-5297.00268807,0.00024685,2]
[321863013,1712572247670,-1567.33224456,0.00024685,2]
[321863015,1712572247679,-169.09392221,0.00024685,2]
[321863017,1712572247688,-1250.61616444,0.00024685,2]
[321863020,1712572247698,-9516.5401976,0.00024687,2]
[321863022,1712572247708,-1567.33224456,0.00024687,2]
[321863024,1712572247718,-1174.00379903,0.00024687,2]
[321863025,1712572247729,-7233.6002231,0.00024687,2]
[321863028,1712572247739,-1250.61616444,0.00024688,2]
[321863030,1712572247749,-3389.42138811,0.00024688,2]
[321863032,1712572247758,-7233.6002231,0.00024688,2]
[321863034,1712572247768,-150.0,0.00024688,2]
[321863036,1712572247777,-32346.3656615,0.00024689,2]
[321863038,1712572247785,-308.47705616,0.00024689,2]
[321863040,1712572247794,-196.38521884,0.00024689,2]
[321863042,1712572247803,-169.09392221,0.0002469,2]
[321863044,1712572247813,-212.37031754,0.0002469,2]
[321863046,1712572247822,-9516.5401976,0.0002469,2]
[321863048,1712572247831,-5661.83883325,0.00024691,2]
[321863050,1712572247841,-5753.14461705,0.00024692,2]
[321863052,1712572247856,-9516.5401976,0.00024692,2]
[321863054,1712572247865,-5297.00268807,0.00024692,2]
[321863056,1712572247874,-212.37031754,0.00024693,2]
[321863058,1712572247884,-1567.33224456,0.00024694,2]
[321863060,1712572247893,-39116.24762274,0.00024694,2]
[321863062,1712572247902,-3389.42138811,0.00024694,2]
[321863064,1712572247912,-32346.3656615,0.00024694,2]
[321863066,1712572247921,-28549.62059279,0.00024694,2]
[321863068,1712572247931,-169.09392221,0.00024695,2]
[321863070,1712572247941,-180.18816982,0.00024695,2]
[321863072,1712572247950,-47582.700988,0.00024695,2]
[321863074,1712572247960,-28549.62059279,0.00024695,2]
[321863076,1712572247969,-395.62416135,0.00024696,2]
[321863078,1712572247979,-535.04720909,0.00024696,2]
[321863080,1712572247988,-6269.32897825,0.00024696,2]
[321863082,1712572247997,-196.38521884,0.00024697,2]
[321863083,1712572248006,-47582.700988,0.00024697,2]
[321863086,1712572248017,-1174.00379903,0.00024697,2]
[321863087,1712572248026,-1174.00379903,0.00024697,2]
[321863089,1712572248035,-585.40992667,0.00024697,2]
[321863092,1712572248045,-535.04720909,0.00024697,2]
[321863093,1712572248054,-5661.83883325,0.00024697,2]
[321863096,1712572248064,-5297.00268807,0.00024697,2]
[321863097,1712572248074,-166.89487256,0.00024698,2]
[321863100,1712572248084,-180.18816982,0.00024698,2]
[321863102,1712572248094,-305.44667792,0.00024698,2]
[321863103,1712572248103,-166.89487256,0.00024699,2]
[321863106,1712572248112,-535.04720909,0.00024699,2]
[321863108,1712572248122,-305.44667792,0.00024699,2]
[321863110,1712572248131,-166.89487256,0.00024699,2]
[321863112,1712572248140,-150.0,0.00024699,2]
[321863113,1712572248149,-316.49932907,0.000247,2]
[321863116,1712572248159,-510.0,0.000247,2]
[321863118,1712572248169,-1000.0,0.000247,2]
[321863120,1712572248178,-150.0,0.00024704,2]
[321863121,1712572248187,-150.0,0.00024727,2]
[321863122,1712572248197,-150.0,0.00024729,2]
[321863123,1712572248206,-300.0,0.00024737,2]
[321863124,1712572248215,-6922.41095561,0.0002475,2]
[321863125,1712572248226,-505.23422639,0.0002475,2]
[321863126,1712572248235,-784.29171298,0.00024754,4]
[321863128,1712572248244,-152.0,0.00024779,5]
[321863130,1712572248253,-5341.47752,0.0002478,2]
[321863132,1712572248262,-265.42307109,0.0002479,2]
[321863134,1712572248271,-581.44897336,0.0002479,2]
[321863136,1712572248280,-150.0,0.00024797,2]
[321863138,1712572248289,-4267.03494784,0.000248,2]
[321863140,1712572248298,-213.0,0.0002481,2]
[321863142,1712572248307,-150.0,0.00024811,2]
[321863144,1712572248316,-150.0,0.00024825,2]
[321863146,1712572248325,-150.0,0.00024826,2]
[321863148,1712572248335,-150.0,0.00024852,2]
[321863150,1712572248343,-13680.70974568,0.00024857,2]
[321863152,1712572248353,-330.44041692,0.00024863,2]
[321863154,1712572248363,-20000.0,0.000249,3]
[321863156,1712572248372,-500.0,0.000249,2]
[321863158,1712572248381,-394.0,0.000249,2]
[321863160,1712572248390,-187.0,0.000249,8]
[321863162,1712572248398,-481.0,0.000249,8]
[321863164,1712572248407,-1240.0,0.000249,2]
[321863166,1712572248416,-150.0,0.00024905,2]
[321863168,1712572248425,-150.0,0.00024908,2]
[321863170,1712572248434,-150.0,0.0002491,2]
[321863172,1712572248445,-150.0,0.00024924,2]
[321863174,1712572248454,-150.0,0.00024927,2]
[321863176,1712572248463,-500.0,0.00024931,2]
[321863178,1712572248474,-13722.83884498,0.0002496,2]
[321863180,1712572248483,-1500.0,0.00024968,2]
[321863182,1712572248493,-150.0,0.00024972,2]
[321863184,1712572248502,-150.0,0.00024975,2]
[321863186,1712572248511,-1089.97,0.0002498,2]
[321863188,1712572248520,-150.0,0.00024988,2]
[321863190,1712572248529,-150.0,0.00024988,2]
[321863192,1712572248538,-52794.66834352,0.00024996,2]
[321863194,1712572248547,-38242.17669179,0.00024999,2]
[321863196,1712572248556,-12100.56785583,0.00024999,2]
[321863198,1712572248565,-5702.3846837,0.00024999,2]
[321863200,1712572248574,-1005.42069864,0.00024999,2]
[321863202,1712572248583,-4568.39026316,0.00024999,2]
[321863204,1712572248592,-7516.26368474,0.00024999,2]
[321863206,1712572248601,-102048.09650931,0.00024999,2]
[321863208,1712572248610,-4995.60483251,0.00025,2]
[321863226,1712572248776,-5000.0,0.00025,2]
[321863228,1712572248787,-171.52271252,0.00025,2]
[321863230,1712572248796,-265.22596537,0.00025,2]
[321863232,1712572248805,-2843.27416764,0.00025,2]
[321863234,1712572248815,-6255.03785299,0.00025,2]
[321863236,1712572248824,-26802.25013894,0.00025,7]
[321863238,1712572248833,-150.0,0.00025,2]
[321863240,1712572248849,-300.0,0.00025,2]
[321863242,1712572248859,-300.0,0.00025,2]
[321863244,1712572248869,-300.0,0.00025,2]
[321863246,1712572248878,-374.0,0.00025,2]
[321863248,1712572248888,-914.3269,0.00025,3]
[321863250,1712572248897,-200.0,0.00025,7]
[321863252,1712572248907,-200.0,0.00025,7]
[321863254,1712572248916,-200.0,0.00025,7]
[321863256,1712572248928,-468904.678273,0.00025,2]
[321863258,1712572248937,-178.35425226,0.00025,7]
[321863260,1712572248948,-500.03670498,0.00025,3]
[321863262,1712572248957,-200.0,0.00025,7]
[321863265,1712572248966,-200.0,0.00025,7]
[321863266,1712572248978,-200.0,0.00025,7]
[321863269,1712572248987,-200.0,0.00025,7]
[321863271,1712572248996,-200.0,0.00025,7]
[321863273,1712572249005,-200.0,0.00025,7]
[321863275,1712572249014,-200.0,0.00025,7]
[321863277,1712572249023,-200.0,0.00025,7]
[321863279,1712572249033,-200.0,0.00025,7]
[321863281,1712572249042,-200.0,0.00025,7]
[321863283,1712572249054,-200.0,0.00025,7]
[321863285,1712572249063,-200.0,0.00025,7]
[321863287,1712572249072,-200.0,0.00025,7]
[321863289,1712572249081,-200.0,0.00025,7]
[321863291,1712572249091,-200.0,0.00025,7]
[321863293,1712572249100,-200.0,0.00025,7]
[321863295,1712572249109,-200.0,0.00025,7]
[321863297,1712572249118,-2000.0,0.00025,2]
[321863298,1712572249127,-2364.0,0.00025,2]
[321863301,1712572249137,-1900.0,0.00025,3]
[321863303,1712572249147,-155.0,0.00025,2]
[321863304,1712572249156,-200.0,0.00025,7]
[321863306,1712572249165,-221.64574774,0.00025,7]
[321863308,1712572249175,-200.0,0.00025,7]
[321863311,1712572249184,-4813.0,0.00025,8]
[321863313,1712572249194,-2223.86098401,0.00025,2]
[321863315,1712572249204,-150.0,0.00025,2]
[321863317,1712572249213,-500.0,0.00025,2]
[321863319,1712572249223,-150.0,0.00025,2]
[321863321,1712572249233,-200.0,0.00025,7]
[321863323,1712572249242,-200.0,0.00025,7]
[321863324,1712572249251,-200.0,0.00025,7]
[321863327,1712572249261,-200.0,0.00025,7]
[321863329,1712572249271,-200.0,0.00025,7]
[321863330,1712572249280,-221.64574774,0.00025,7]
[321863332,1712572249289,-150.0,0.0002501,2]
[321863334,1712572249298,-150.0,0.0002501,2]
[321863336,1712572249307,-1500.0,0.00025046,2]
[321863337,1712572249316,-1898.761,0.00025056,4]
[321863338,1712572249326,-1898.762,0.00025056,4]
[321863339,1712572249334,-1898.762,0.00025056,4]
[321863340,1712572249344,-1898.761,0.00025056,4]
[321863341,1712572249354,-1898.762,0.00025056,4]
[321863342,1712572249363,-1500.0,0.00025057,2]
[321863343,1712572249372,-150.0,0.00025077,2]
[321863344,1712572249381,-150.0,0.00025077,2]
[321863345,1712572249391,-16137.60201979,0.000251,2]
[321863346,1712572249400,-3162.74498577,0.000251,2]
[321863347,1712572249409,-152.0,0.00025137,6]
[321863348,1712572249419,-1877.94880233,0.00025159,2]
[321863349,1712572249429,-1500.0,0.00025179,2]
[321863350,1712572249438,-150.0,0.00025182,2]
[321863351,1712572249448,-1525.82,0.000252,2]
[321863352,1712572249458,-1500.0,0.00025208,2]
[321863353,1712572249467,-150.0,0.00025221,2]
[321863354,1712572249477,-225.0,0.0002524,7]
[321863355,1712572249487,-300.0,0.0002525,2]
[321863356,1712572249496,-150.0,0.00025274,2]
[321863357,1712572249505,-881.38408493,0.00025277,2]
[321863358,1712572249515,-1000.0,0.00025293,2]
[321863359,1712572249524,-150.0,0.00025308,2]
[321863360,1712572249534,-150.0,0.00025322,2]
[321863361,1712572249543,-1500.0,0.00025341,2]
[321863362,1712572249552,-150.0,0.00025357,2]
[321863363,1712572249562,-1500.0,0.00025358,2]
[321863364,1712572249571,-213.0,0.0002539,2]
[321863365,1712572249580,-150.0,0.00025411,2]
[321863366,1712572249590,-150.0,0.00025413,2]
[321863367,1712572249599,-150.0,0.00025416,2]
[321863368,1712572249609,-1500.0,0.00025417,2]
[321863369,1712572249618,-150.0,0.00025431,2]
[321863370,1712572249627,-150.0,0.00025437,2]
[321863371,1712572249637,-151.30107013,0.00025459,2]
[321863372,1712572249646,-1500.0,0.00025464,2]
[321863373,1712572249656,-150.0,0.00025494,2]
[321863374,1712572249667,-150.0,0.00025495,2]
[321863375,1712572249676,-152.0,0.00025496,7]
[321863376,1712572249686,-1000.0,0.000255,2]
[321863377,1712572249695,-1414.43,0.000255,2]
[321863378,1712572249705,-150.0,0.00025505,2]
[321863379,1712572249714,-150.0,0.00025505,2]
[321863380,1712572249724,-1500.0,0.00025512,2]
[321863381,1712572249733,-150.0,0.0002553,2]
[321863382,1712572249742,-150.0,0.00025555,2]
[321863383,1712572249751,-150.0,0.00025575,2]
[321863384,1712572249761,-150.0,0.00025591,2]
[321863385,1712572249770,-150.0,0.00025592,2]
[321863386,1712572249780,-1500.0,0.00025619,2]
[321863387,1712572249789,-300.0,0.00025626,2]
[321863388,1712572249798,-1500.0,0.00025629,2]
[321863389,1712572249807,-300.0,0.00025633,2]
[321863390,1712572249818,-150.0,0.00025635,2]
[321863391,1712572249828,-150.0,0.00025635,2]
[321863392,1712572249838,-150.0,0.0002564,2]
[321863393,1712572249850,-260.8952087,0.00025654,2]
[321863394,1712572249860,-505.0,0.00025657,2]
[321863395,1712572249869,-150.0,0.0002567,2]
[321863396,1712572249878,-301.30710351,0.00025688,2]
[321863397,1712572249887,-150.0,0.00025701,2]
[321863398,1712572249897,-150.0,0.00025716,2]
[321863399,1712572249907,-1500.0,0.00025723,2]
[321863400,1712572249916,-150.0,0.00025724,2]
[321863401,1712572249926,-1500.0,0.00025726,2]
[321863402,1712572249937,-150.0,0.0002574,2]
[321863403,1712572249946,-1500.0,0.00025746,2]
[321863404,1712572249955,-150.0,0.00025748,2]
[321863405,1712572249964,-475.76,0.00025748,2]
[321863406,1712572249975,-153.28189196,0.00025756,2]
[321863407,1712572249984,-150.0,0.0002576,2]
[321863408,1712572249994,-300.0,0.00025761,2]
[321863409,1712572250003,-150.0,0.00025771,2]
[321863410,1712572250013,-150.0,0.00025785,2]
[321863411,1712572250023,-1500.0,0.00025794,2]
[321863412,1712572250032,-150.0,0.00025795,2]
[321863413,1712572250042,-150.0,0.00025806,2]
[321863414,1712572250051,-150.0,0.00025806,2]
[321863415,1712572250061,-150.0,0.00025809,2]
[321863416,1712572250071,-300.0,0.00025818,2]
[321863417,1712572250080,-641.66521052,0.0002582,2]
[321863418,1712572250090,-161.43,0.00025821,2]
[321863419,1712572250099,-221.06395874,0.00025823,2]
[321863420,1712572250109,-1500.0,0.00025829,2]
[321863421,1712572250118,-150.0,0.00025839,2]
[321863422,1712572250127,-27822.9,0.00025839,4]
[321863423,1712572250137,-27822.9,0.00025839,4]
[321863424,1712572250146,-27822.9,0.00025839,4]
[321863425,1712572250156,-27822.9,0.00025839,4]
[321863426,1712572250165,-27822.9,0.00025839,4]
[321863427,1712572250175,-17472.69827357,0.0002584,2]
[321863428,1712572250185,-154.21324393,0.0002584,2]
[321863429,1712572250194,-152.0,0.00025854,8]
[321863430,1712572250203,-1500.0,0.00025858,2]
[321863431,1712572250212,-150.0,0.00025871,2]
[321863432,1712572250222,-150.0,0.00025882,2]
[321863433,1712572250231,-1877.94880233,0.00025886,2]
[321863434,1712572250241,-150.0,0.00025896,2]
[321863435,1712572250250,-1500.0,0.00025899,2]
[321863436,1712572250259,-397.74445,0.000259,2]
[321863437,1712572250269,-200.0,0.000259,9]
[321863438,1712572250278,-1700.0,0.000259,9]
[321863439,1712572250287,-1500.0,0.00025902,2]
[321863440,1712572250296,-300.0,0.00025912,2]
[321863441,1712572250305,-150.0,0.00025923,2]
[321863442,1712572250314,-1500.0,0.00025942,2]
[321863443,1712572250323,-150.0,0.00025949,2]
[321863444,1712572250333,-150.0,0.00025954,2]
[321863445,1712572250342,-213.0,0.0002596,2]
[321863446,1712572250351,-1500.0,0.00025966,2]
[321863447,1712572250361,-313.10280306,0.00025968,2]
[321863448,1712572250371,-150.0,0.00025982,2]
[321863449,1712572250380,-150.0,0.00025984,2]
[321863450,1712572250390,-150.0,0.00025986,2]
[321863451,1712572250400,-9999.999999,0.00026,4]
[321863452,1712572250409,-2019.46,0.00026,2]
[321863453,1712572250418,-4227.53620941,0.00026,2]
[321863454,1712572250428,-150.0,0.00026,2]
[321863455,1712572250438,-150.0,0.00026,2]
[321863456,1712572250447,-300.0,0.00026,2]
[321863457,1712572250456,-19427.3318618,0.00026,2]
[321863458,1712572250466,-250000.0,0.00026,2]
[321863459,1712572250477,-500000.0,0.00026,2]
[321863460,1712572250486,-10000.0,0.00026,2]
[321863461,1712572250495,-10000.0,0.00026,2]
[321863462,1712572250504,-10000.0,0.00026,2]
[321863463,1712572250514,-14470.08789987,0.00026,2]
[321863464,1712572250523,-10000.0,0.00026,2]
[321863465,1712572250532,-15999.99033714,0.00026,2]
[321863466,1712572250541,-10775.60286783,0.00026,2]
[321863467,1712572250550,-7029.05567154,0.00026,2]
[321863468,1712572250559,-10222.85855636,0.00026,2]
[321863469,1712572250567,-150.0,0.00026001,2]
[321863470,1712572250577,-1500.0,0.00026006,2]
[321863471,1712572250586,-150.0,0.00026008,2]
[321863472,1712572250595,-24304.8148891,0.00026013,2]
[321863473,1712572250604,-1500.0,0.00026014,2]
[321863474,1712572250614,-150.0,0.00026019,2]
[321863475,1712572250623,-150.0,0.0002602,2]
[321863476,1712572250632,-150.0,0.00026021,2]
[321863477,1712572250641,-303.43903029,0.00026025,2]
[321863478,1712572250650,-300.0,0.00026029,2]
[321863479,1712572250660,-150.0,0.00026032,2]
[321863480,1712572250669,-150.0,0.00026036,2]
[321863481,1712572250679,-150.0,0.00026037,2]
[321863482,1712572250688,-312.3126837,0.00026041,2]
[321863483,1712572250697,-150.0,0.00026044,2]
[321863484,1712572250706,-150.0,0.00026048,2]
[321863485,1712572250716,-150.0,0.00026062,2]
[321863486,1712572250725,-1500.0,0.00026065,2]
[321863487,1712572250734,-1000.0,0.0002607,2]
[321863488,1712572250744,-150.0,0.0002607,2]
[321863489,1712572250754,-150.0,0.00026074,2]
[321863490,1712572250763,-150.0,0.0002608,2]
[321863491,1712572250772,-1500.0,0.0002608,2]
[321863492,1712572250781,-150.0,0.00026082,2]
[321863493,1712572250791,-150.0,0.00026085,2]
[321863494,1712572250800,-150.0,0.00026087,2]
[321863495,1712572250809,-300.0,0.00026097,2]
[321863496,1712572250818,-600.0,0.000261,2]
[321863497,1712572250828,-150.0,0.00026116,2]
[321863498,1712572250837,-3959.16914891,0.00026125,11]
[321863499,1712572250848,-150.0,0.00026131,2]
[321863500,1712572250859,-1500.0,0.00026131,2]
[321863501,1712572250868,-300.0,0.00026134,2]
[321863502,1712572250877,-150.0,0.00026136,2]
[321863503,1712572250886,-300.0,0.0002614,2]
[321863504,1712572250897,-1500.0,0.00026163,2]
[321863505,1712572250906,-330.44041692,0.00026173,3]
[321863506,1712572250915,-1500.0,0.00026176,2]
[321863507,1712572250925,-150.0,0.00026187,2]
[321863508,1712572250934,-150.0,0.00026189,2]
[321863509,1712572250943,-150.0,0.00026192,2]
[321863510,1712572250953,-150.0,0.000262,2]
[321863511,1712572250963,-150.0,0.00026203,2]
[321863512,1712572250973,-1500.0,0.0002621,2]
[321863513,1712572250982,-152.0,0.00026212,9]
[321863514,1712572250992,-150.0,0.00026213,2]
[321863515,1712572251155,-1500.0,0.00026217,2]
[321863516,1712572251165,-150.0,0.0002622,2]
[321863517,1712572251183,-150.0,0.0002623,2]
[321863518,1712572251192,-300.0,0.00026232,2]
[321863519,1712572251202,-150.0,0.00026247,2]
[321863520,1712572251211,-1500.0,0.00026255,2]
[321863521,1712572251221,-150.0,0.00026257,2]
[321863522,1712572251230,-150.0,0.00026265,2]
[321863523,1712572251240,-150.0,0.00026265,2]
[321863524,1712572251250,-150.0,0.00026265,2]
[321863525,1712572251260,-150.0,0.00026267,2]
[321863526,1712572251269,-1500.0,0.00026283,2]
[321863527,1712572251278,-300.0,0.00026284,2]
[321863528,1712572251287,-150.0,0.00026285,2]
[321863529,1712572251296,-150.0,0.00026287,2]
[321863530,1712572251306,-247.68743586,0.00026289,2]
[321863531,1712572251316,-50418.67443869,0.000263,2]
[321863532,1712572251325,-150.0,0.00026305,2]
[321863533,1712572251334,-1500.0,0.00026307,2]
[321863534,1712572251344,-150.0,0.00026311,2]
[321863535,1712572251353,-455.59031679,0.00026312,2]
[321863536,1712572251362,-150.0,0.00026315,2]
[321863537,1712572251371,-727.62,0.00026318,2]
[321863538,1712572251380,-150.0,0.0002632,2]
[321863539,1712572251389,-1386.13236329,0.00026344,2]
[321863540,1712572251398,-150.0,0.00026344,2]
[321863541,1712572251408,-1500.0,0.00026359,2]
[321863542,1712572251417,-304.54086266,0.00026367,2]
[321863543,1712572251426,-1000.0,0.0002637,2]
[321863544,1712572251435,-1500.0,0.00026371,2]
[321863545,1712572251444,-150.0,0.00026373,2]
[321863546,1712572251453,-150.0,0.00026377,2]
[321863547,1712572251462,-150.0,0.0002638,2]
[321863548,1712572251471,-150.0,0.00026383,2]
[321863549,1712572251480,-150.0,0.00026397,2]
[321863550,1712572251490,-25662.5991942,0.000264,2]
[321863551,1712572251500,-150.0,0.00026411,2]
[321863552,1712572251509,-150.0,0.00026425,2]
[321863553,1712572251518,-1000.0,0.0002647,2]
[321863554,1712572251528,-1000.0,0.0002647,2]
[321863555,1712572251537,-1000.0,0.0002647,2]
[321863556,1712572251546,-500.0,0.0002647,2]
[321863557,1712572251555,-809.41341137,0.0002647,2]
[321863558,1712572251564,-213.0,0.0002654,2]
[321863559,1712572251573,-152.0,0.00026571,10]
[321863560,1712572251583,-181.82,0.00026589,2]
[321863561,1712572251592,-1525.82,0.000266,2]
[321863562,1712572251602,-1877.94880233,0.00026612,2]
[321863563,1712572251611,-1600.0,0.00026659,2]
[321863564,1712572251620,-530.356658,0.00026681,2]
[321863565,1712572251629,-2237.082352,0.00026681,2]
[321863566,1712572251638,-159.009926,0.00026681,2]
[321863567,1712572251647,-2237.082352,0.00026681,2]
[321863568,1712572251657,-159.009925,0.00026681,2]
[321863569,1712572251666,-2764.627218,0.00026681,2]
[321863570,1712572251676,-159.507851,0.00026681,2]
[321863571,1712572251685,-505.0,0.00026684,2]
[321863572,1712572251695,-1414.43,0.000267,2]
[321863573,1712572251704,-897.90985936,0.0002688,30]
[321863574,1712572251714,-152.0,0.00026929,11]
[321863575,1712572251723,-1500.0,0.00026956,2]
[321863576,1712572251732,-141355.43691786,0.00027,2]
[321863577,1712572251742,-150.0,0.00027,2]
[321863578,1712572251751,-1000.0,0.00027,2]
[321863579,1712572251760,-158.67381159,0.00027,4]
[321863580,1712572251770,-394.0,0.00027,2]
[321863581,1712572251779,-2000.0,0.00027,2]